bitfinex/quotes_BTCUSD_20251219
["timestamp","ask_amount","ask_price","bid_price","bid_amount"]
[1766177938060,0.00010815,88064.0,88055.0,0.00572]
[1766177938290,0.01135602,88059.0,88055.0,0.00572]
[1766177938483,0.01135576,88061.0,88055.0,0.00572]
[1766177938697,0.01135563,88062.0,88055.0,0.00572]
[1766177938844,0.01135563,88062.0,88045.0,0.46931782]
[1766177939055,0.01135563,88062.0,88047.0,0.45796]
[1766177939252,0.01135563,88062.0,88048.0,0.00572]
[1766177939253,0.06813429,88062.0,88048.0,0.00572]
[1766177939454,0.01135576,88061.0,88048.0,0.00572]
[1766177939662,0.01135615,88058.0,88048.0,0.00572]
[1766177939861,0.01135602,88059.0,88048.0,0.00572]
[1766177940092,0.01135589,88060.0,88048.0,0.00572]
[1766177940308,0.03068079,88094.0,88072.0,0.01135434]
[1766177940482,0.01457396,88110.0,88050.0,2.062548]
[1766177940483,0.05676351,88085.0,88065.0,0.01135524]
[1766177940666,0.05676351,88085.0,88061.0,0.55463]
[1766177940667,0.01357397,88078.0,88066.0,0.00572]
[1766177940901,0.59246397,88078.0,88066.0,0.00572]
[1766177941350,0.59246397,88078.0,88057.0,0.61141127]
[1766177941351,0.01135524,88065.0,88062.0,0.03410992]
[1766177941523,0.01135563,88062.0,88050.0,0.00010815]
[1766177941863,0.59024563,88062.0,88050.0,0.00010815]
[1766177942303,0.02492934,88064.0,88050.0,0.00010815]
[1766177942304,0.05678482,88052.0,88050.0,0.00010815]
[1766177942454,0.05678482,88052.0,88032.0,0.0113595]
[1766177942455,0.01135731,88049.0,88032.0,0.45796]
[1766177942660,0.01135808,88043.0,88032.0,0.45832048]
[1766177942856,0.01357397,88046.0,88033.0,0.00572]
[1766177943063,0.01135705,88051.0,88033.0,0.00572]
[1766177943269,0.47677,88068.0,88049.0,0.01135731]
[1766177943471,0.00572,88071.0,88053.0,0.45796]
[1766177943673,0.00572,88071.0,88060.0,0.01135589]
[1766177943927,0.01135425,88079.0,88060.0,0.01135589]
[1766177943928,0.01135425,88079.0,88071.0,0.01135447]
[1766177943929,8.1e-07,88079.0,88071.0,0.01135447]
[1766177944133,8.1e-07,88079.0,88074.0,0.01135408]
[1766177944339,8.1e-07,88079.0,88073.0,0.46314]
[1766177944542,8.1e-07,88079.0,88071.0,0.00572]
[1766177944945,0.000109,88079.0,88071.0,0.00572]
[1766177945154,0.000109,88079.0,88067.0,0.01135499]
[1766177945330,0.6167437,88077.0,88060.0,0.01135589]
[1766177945572,0.000109,88079.0,88068.0,0.01135486]
[1766177945778,0.000109,88079.0,88067.0,0.01135499]
[1766177945985,0.000109,88079.0,88070.0,0.0113546]
[1766177946199,0.000109,88079.0,88071.0,0.00572]
[1766177946408,0.01135267,88085.0,88071.0,0.00572]
[1766177946582,0.60539,88082.0,88071.0,0.00572]
[1766177946825,0.01357397,88080.0,88071.0,0.00572]
[1766177947280,0.01135318,88081.0,88071.0,0.00572]
[1766177947499,0.01357397,88080.0,88071.0,0.00572]
[1766177947856,0.46364176,88095.0,88074.0,0.01135408]
[1766177948078,0.01707163,88093.0,88074.0,0.01135408]
[1766177948308,0.01135228,88088.0,88075.0,0.46314]
[1766177948536,0.60539,88088.0,88076.0,0.00572]
[1766177949038,0.01135241,88087.0,88076.0,0.00572]
[1766177949239,0.60539,88088.0,88076.0,0.00572]
[1766177949363,0.60539,88088.0,88075.0,0.00010819]
[1766177949364,0.01135267,88085.0,88075.0,0.00010819]
[1766177949572,0.01135254,88086.0,88075.0,0.00010819]
[1766177949799,0.45229,88088.0,88075.0,0.00010819]
[1766177950020,0.45229,88088.0,88076.0,0.00572]
[1766177950443,0.01135151,88094.0,88077.0,1.0291237]
[1766177950644,0.0113506,88101.0,88077.0,1.01777]
[1766177950848,0.01135099,88098.0,88079.0,0.01135344]
[1766177951099,0.01135112,88097.0,88081.0,0.55463]
[1766177951301,0.01135112,88097.0,88074.0,0.46314]
[1766177951302,0.02492522,88096.0,88074.0,0.46314]
[1766177951503,0.01135163,88093.0,88076.0,0.46314]
[1766177951744,0.01357397,88096.0,88077.0,0.4744937]
[1766177951915,0.01357397,88096.0,88075.0,0.01146214]
[1766177951916,0.01135151,88094.0,88080.0,0.46314]
[1766177952069,0.01357397,88096.0,88080.0,0.46314]
[1766177952275,0.50904411,88100.0,88075.0,0.01146214]
[1766177952276,0.01134996,88106.0,88083.0,0.01135292]
[1766177952478,0.67348846,88108.0,88075.0,0.04558819]
[1766177952479,0.01357397,88096.0,88084.0,0.00572]
[1766177952699,0.45229,88098.0,88084.0,0.00572]
[1766177952903,0.00572,88102.0,88086.0,0.46314]
[1766177953114,0.60539,88118.0,88088.0,0.01357397]
[1766177953510,0.04548,88132.0,88107.0,0.46314]
[1766177953511,0.61673751,88125.0,88107.0,0.46314]
[1766177953720,0.01357397,88123.0,88108.0,0.0170697]
[1766177953924,0.02492174,88123.0,88108.0,0.00572]
[1766177954075,0.01134816,88120.0,88108.0,0.00572]
[1766177954274,0.01134816,88120.0,88101.0,0.0113506]
[1766177954275,0.60539,88122.0,88102.0,0.51989196]
[1766177954440,0.60539,88122.0,88103.0,0.00572]
[1766177954644,0.01134803,88121.0,88103.0,0.00572]
[1766177954867,0.01134816,88120.0,88102.0,0.47449048]
[1766177955061,0.01134816,88120.0,88102.0,0.46314]
[1766177955266,0.01134816,88120.0,88097.0,0.56598112]
[1766177955267,0.01357397,88109.0,88103.0,0.00572]
[1766177955464,0.60539,88107.0,88100.0,0.00572]
[1766177955713,0.60539,88107.0,88098.0,0.00572]
[1766177955912,0.01134893,88114.0,88098.0,0.00572]
[1766177956136,0.01134893,88114.0,88093.0,0.46314]
[1766177956137,0.01357397,88109.0,88093.0,0.46314]
[1766177956337,0.60539,88103.0,88090.0,0.00572]
[1766177956826,0.61674035,88103.0,88090.0,0.00572]
[1766177957046,0.01135048,88102.0,88090.0,0.00572]
[1766177957278,0.60539,88094.0,88077.0,0.01135279]
[1766177957479,0.60539,88094.0,88080.0,0.01135331]
[1766177957806,0.60539,88094.0,88083.0,0.01135292]
[1766177958164,0.02492354,88109.0,88079.0,0.05676722]
[1766177958367,0.01134983,88107.0,88087.0,0.46314]
[1766177958586,0.60539,88108.0,88090.0,0.01135202]
[1766177958797,0.01357397,88107.0,88092.0,0.46314]
[1766177958999,0.01145776,88109.0,88095.0,0.46314]
[1766177959000,0.00010819,88109.0,88095.0,0.46314]
[1766177959224,0.00010819,88109.0,88096.0,0.00572]
[1766177959424,0.00010819,88109.0,88096.0,0.46886]
[1766177959850,0.0249229,88114.0,88100.0,0.55463]
[1766177960035,0.01134867,88116.0,88100.0,0.55463]
[1766177960036,0.01134919,88112.0,88101.0,0.46314]
[1766177960243,0.0113497,88108.0,88100.0,0.00010819]
[1766177960430,0.45229,88106.0,88091.0,0.01135189]
[1766177960623,0.45229,88106.0,88094.0,0.01135151]
[1766177960624,0.45239813,88106.0,88094.0,0.01135151]
[1766177960860,0.46374809,88106.0,88086.0,0.01135254]
[1766177961052,0.61674035,88103.0,88085.0,0.46314]
[1766177961267,0.00010813,88106.0,88090.0,0.01707202]
[1766177961618,0.00010813,88106.0,88091.0,0.46532]
[1766177961822,0.00010813,88106.0,88093.0,0.01135163]
[1766177962023,0.00010813,88106.0,88091.0,0.46532]
[1766177962238,0.46702,88114.0,88090.0,0.00572]
[1766177962239,0.01134867,88116.0,88100.0,0.46532]
[1766177962464,0.01134841,88118.0,88101.0,0.47104]
[1766177962669,0.59373,88119.0,88101.0,0.47104]
[1766177962875,0.01134816,88120.0,88102.0,0.46532]
[1766177963081,0.01134829,88119.0,88105.0,0.55463]
[1766177963296,0.0113488,88115.0,88095.0,0.01135138]
[1766177963496,0.01357397,88116.0,88100.0,0.01135073]
[1766177963670,0.01357397,88116.0,88101.0,0.46532]
[1766177963895,0.01357397,88116.0,88110.0,0.01134944]
[1766177964111,0.61865084,88130.0,88107.0,0.55463]
[1766177964112,0.60730397,88130.0,88113.0,0.01134906]
[1766177964312,0.01357397,88129.0,88111.0,0.46532]
[1766177964494,0.53509928,88133.0,88110.0,0.00572]
[1766177964495,0.01134648,88133.0,88110.0,0.00572]
[1766177964685,0.02492084,88130.0,88117.0,0.46532]
[1766177964900,0.01357397,88130.0,88118.0,0.00572]
[1766177965266,0.01134726,88127.0,88118.0,0.00572]
[1766177965476,0.02492084,88130.0,88118.0,0.00572]
[1766177965836,0.01357397,88130.0,88118.0,0.00572]
[1766177966280,0.01134738,88126.0,88108.0,0.4766697]
[1766177966490,0.59373,88128.0,88108.0,0.52206838]
[1766177966754,0.60507713,88128.0,88110.0,0.01134944]
[1766177966965,0.01134687,88130.0,88114.0,0.46532]
[1766177967141,0.01357397,88129.0,88115.0,0.0113488]
[1766177967344,0.01134494,88145.0,88126.0,0.46532]
[1766177967523,0.03063904,88144.0,88126.0,0.46532]
[1766177967723,0.01134532,88142.0,88126.0,0.46532]
[1766177967923,0.0113452,88143.0,88126.0,0.46532]
[1766177968127,0.01134558,88140.0,88126.0,0.46532]
[1766177968327,0.59373,88140.0,88125.0,0.00572]
[1766177968544,0.59409056,88140.0,88125.0,0.00572]
[1766177968927,0.00036056,88140.0,88126.0,0.46532]
[1766177969128,0.01134571,88139.0,88126.0,0.46532]
[1766177969372,0.59373,88131.0,88116.0,0.07381163]
[1766177969572,0.59373,88131.0,88117.0,0.01706854]
[1766177969748,0.01706584,88138.0,88108.0,0.0113497]
[1766177969749,0.59373,88125.0,88108.0,0.0113497]
[1766177969949,0.01357397,88127.0,88109.0,0.00572]
[1766177969950,0.46702,88122.0,88109.0,0.00572]
[1766177970174,0.46702,88122.0,88099.0,0.55463]
[1766177970175,0.05673026,88137.0,88114.0,0.55463]
[1766177970375,0.59373,88139.0,88114.0,0.55463]
[1766177970376,0.0113461,88136.0,88114.0,0.55463]
[1766177970709,0.0113461,88136.0,88095.0,0.01357397]
[1766177970710,0.59373,88129.0,88115.0,0.00572]
[1766177970903,0.59373,88129.0,88116.0,0.00572]
[1766177971204,0.59373,88129.0,88111.0,0.00572]
[1766177971409,0.65046509,88129.0,88111.0,0.00572]
[1766177971705,0.60507777,88123.0,88112.0,0.00572]
[1766177971894,0.59373,88121.0,88112.0,0.00572]
[1766177972279,0.59373,88111.0,88100.0,0.01357397]
[1766177972499,0.59373,88109.0,88100.0,3.97e-06]
[1766177972681,0.59373,88102.0,88084.0,0.01135279]
[1766177972884,0.59373,88100.0,88086.0,0.01135254]
[1766177973081,0.59373,88100.0,88087.0,0.00572]
[1766177973263,0.59373,88107.0,88093.0,0.01135163]
[1766177973464,0.59373,88107.0,88094.0,0.00572]
[1766177973692,0.60507983,88107.0,88094.0,0.00572]
[1766177973891,0.59373,88107.0,88094.0,0.00572]
[1766177974092,0.00572,88111.0,88096.0,0.55463]
[1766177974294,0.01706932,88111.0,88097.0,0.46082]
[1766177974731,0.00572,88111.0,88097.0,0.46082]
[1766177974936,0.00572,88111.0,88096.0,0.55463]
[1766177974937,0.0113488,88115.0,88099.0,0.46082]
[1766177975140,0.06809297,88115.0,88103.0,0.46082]
[1766177975416,0.47596,88108.0,88093.0,0.00010813]
[1766177975664,0.59346,88106.0,88094.0,0.00572]
[1766177975781,0.47596,88107.0,88094.0,0.00572]
[1766177975982,0.47596,88107.0,88093.0,0.00010813]
[1766177976225,1.06942,88107.0,88094.0,0.05116]
[1766177976577,0.01134867,88116.0,88097.0,0.01135112]
[1766177976691,0.59346,88118.0,88097.0,0.46082]
[1766177976898,0.59346,88118.0,88106.0,0.01134996]
[1766177977121,0.59346,88132.0,88111.0,0.46082]
[1766177977326,0.59346,88138.0,88118.0,0.01134841]
[1766177977605,0.59346,88138.0,88117.0,0.46082]
[1766177977606,0.01134597,88137.0,88119.0,0.00572]
[1766177977833,0.06807709,88136.0,88119.0,0.00572]
[1766177978014,0.01134661,88132.0,88119.0,0.00572]
[1766177978204,0.01134661,88132.0,88112.0,0.06809462]
[1766177978205,0.59346,88130.0,88110.0,0.01134944]
[1766177978470,0.59346,88130.0,88111.0,0.01706932]
[1766177978591,0.011347,88129.0,88111.0,0.01706932]
[1766177978814,0.07422745,88128.0,88112.0,0.06250919]
[1766177979044,0.07422745,88128.0,88109.0,0.01134957]
[1766177979395,0.59346,88123.0,88110.0,0.05116]
[1766177980173,0.59346,88123.0,88106.0,0.06809963]
[1766177980174,0.47596,88124.0,88105.0,0.46082]
[1766177980386,0.01134777,88123.0,88111.0,0.04544]
[1766177980541,0.47596,88124.0,88111.0,0.04544]
[1766177980742,0.01134751,88125.0,88111.0,0.04544]
[1766177981040,0.01134764,88124.0,88111.0,0.04544]
[1766177981221,0.05673579,88128.0,88107.0,0.46082]
[1766177981222,0.01134713,88128.0,88107.0,0.46082]
[1766177981420,0.05673758,88125.0,88112.0,0.00572]
[1766177981573,0.00572,88134.0,88108.0,0.55463]
[1766177981790,0.07953088,88150.0,88093.0,1e-08]
[1766177981791,1.06942,88094.0,88093.0,1e-08]
[1766177981976,0.00572,88094.0,88093.0,1e-08]
[1766177982350,0.01357397,88100.0,88093.0,1e-08]
[1766177982686,0.22697429,88116.0,88093.0,1e-08]
[1766177982687,0.00572,88099.0,88093.0,1e-08]
[1766177982889,3.97e-06,88100.0,88093.0,1e-08]
[1766177983086,3.97e-06,88100.0,88095.0,0.01135138]
[1766177983321,0.01134983,88107.0,88094.0,0.46082]
[1766177983482,0.01357397,88102.0,88094.0,0.46082]
[1766177984322,0.01357397,88102.0,88093.0,1e-08]
[1766177984505,0.05674805,88109.0,88093.0,1e-08]
[1766177984506,0.05674315,88117.0,88093.0,0.62273959]
[1766177984734,0.05674315,88117.0,88099.0,0.55463]
[1766177984735,0.01134919,88112.0,88099.0,0.55463]
[1766177984906,0.00572,88111.0,88102.0,0.46082]
[1766177985152,0.01134841,88118.0,88102.0,0.46082]
[1766177985346,0.01134932,88111.0,88093.0,0.00572001]
[1766177985632,0.05674516,88114.0,88093.0,0.00572001]
[1766177985836,0.01357397,88120.0,88105.0,0.01135009]
[1766177986044,0.01357397,88118.0,88106.0,0.46082]
[1766177986886,0.01134738,88126.0,88108.0,0.46082]
[1766177987091,0.01706751,88125.0,88110.0,0.46082]
[1766177987542,0.00572,88125.0,88110.0,0.46082]
[1766177987749,0.0680802,88132.0,88110.0,0.01134944]
[1766177987932,0.01134687,88130.0,88113.0,0.46082]
[1766177988241,0.0680802,88132.0,88113.0,0.46082]
[1766177988242,0.05673308,88132.0,88113.0,0.46082]
[1766177988378,0.01134648,88133.0,88115.0,0.0113488]
[1766177988583,0.04766679,88135.0,88118.0,0.01134841]
[1766177988782,0.01357397,88135.0,88118.0,0.46082]
[1766177988989,0.04584,88153.0,88133.0,0.55463]
[1766177989171,3.97e-06,88143.0,88124.0,0.01134764]
[1766177989383,0.59918,88142.0,88122.0,0.0113479]
[1766177989584,0.01134545,88141.0,88122.0,0.0113479]
[1766177989824,0.01134571,88139.0,88121.0,0.01134803]
[1766177990206,0.01357397,88129.0,88120.0,0.46082]
[1766177990409,0.01357397,88129.0,88110.0,0.01134944]
[1766177990730,0.01357397,88129.0,88112.0,0.01134919]
[1766177991057,0.01357397,88129.0,88107.0,0.55463]
[1766177991058,0.01357397,88113.0,88106.0,0.0013]
[1766177991184,0.62410303,88113.0,88106.0,0.0013]
[1766177991459,0.0113479,88122.0,88108.0,0.46082]
[1766177991669,0.01134829,88119.0,88100.0,0.01135073]
[1766177991872,0.00572,88118.0,88104.0,0.01135022]
[1766177992071,0.00572,88118.0,88101.0,0.0113506]
[1766177992268,0.59346,88120.0,88099.0,0.06247409]
[1766177992472,0.01134803,88121.0,88104.0,0.46082]
[1766177992704,0.0113479,88122.0,88104.0,0.46082]
[1766177992917,0.4873079,88122.0,88104.0,0.46082]
[1766177993134,0.00572,88121.0,88104.0,0.46082]
[1766177993324,0.01357397,88114.0,88070.0,0.00099999]
[1766177993683,0.01357397,88114.0,88060.0,0.00099999]
[1766177993684,0.01134932,88111.0,88093.0,0.01135163]
[1766177993986,1.06942,88109.0,88093.0,0.01135163]
[1766177994212,0.01134829,88119.0,88100.0,0.01135073]
[1766177994410,0.0113488,88115.0,88104.0,0.0004]
[1766177994618,0.01134803,88121.0,88104.0,0.0004]
[1766177994791,0.01134816,88120.0,88104.0,0.0004]
[1766177995002,0.00010817,88121.0,88104.0,0.0004]
[1766177995205,0.01134829,88119.0,88106.0,0.55463]
[1766177995425,0.01134829,88119.0,88093.0,0.01135163]
[1766177995426,0.01135086,88099.0,88076.0,0.01135383]
[1766177995647,0.00582817,88121.0,88078.0,0.47217357]
[1766177995648,0.47596,88096.0,88078.0,0.47217357]
[1766177995846,0.22699619,88108.0,88070.0,0.01357397]
[1766177995847,0.00572,88097.0,88084.0,0.01135279]
[1766177996043,0.01135073,88100.0,88084.0,0.46082]
[1766177996257,0.01357397,88095.0,88075.0,0.46082]
[1766177996485,0.01357397,88095.0,88078.0,0.01135357]
[1766177996696,0.60481112,88097.0,88078.0,0.01135357]
[1766177996921,0.59346,88097.0,88078.0,0.01135357]
[1766177997129,0.47596,88098.0,88081.0,0.01135318]
[1766177997334,0.00572,88101.0,88082.0,0.55463]
[1766177997562,0.01135073,88100.0,88082.0,1.01545]
[1766177997757,0.01135086,88099.0,88082.0,1.01545]
[1766177997958,0.01135099,88098.0,88082.0,1.01545]
[1766177998116,0.01135125,88096.0,88082.0,0.46082]
[1766177998314,0.01135099,88098.0,88090.0,0.01135202]
[1766177998315,0.01357397,88095.0,88090.0,0.01135202]
[1766177998524,0.0113461,88136.0,88125.0,0.46082]
[1766177998752,0.59346,88133.0,88114.0,0.00572]
[1766177998989,0.59346,88132.0,88113.0,0.01134906]
[1766177999309,0.59346,88132.0,88121.0,0.01134803]
[1766177999427,0.59346,88132.0,88118.0,0.05674191]
[1766177999428,0.59346,88132.0,88118.0,0.01134841]
[1766177999632,0.59346,88132.0,88114.0,0.01134893]
[1766177999863,0.05672991,88137.0,88090.0,1.29090478]
[1766177999864,0.06115054,88175.0,88122.0,0.01357397]
[1766178000081,0.47596,88197.0,88122.0,0.01357397]
[1766178000083,0.01133812,88198.0,88180.0,0.00099999]
[1766178000333,0.01133812,88198.0,88180.0,0.00199998]
[1766178000334,0.59346,88193.0,88180.0,0.00199998]
[1766178000544,0.59346,88191.0,88180.0,0.00199998]
[1766178000758,0.47596,88191.0,88180.0,0.0577018]
[1766178000978,0.00576,88195.0,88180.0,0.00099999]
[1766178001186,0.47596,88189.0,88166.0,0.01134224]
[1766178001393,0.04554821,88198.0,88177.0,0.01134082]
[1766178001394,0.47596,88183.0,88177.0,0.01134082]
[1766178001639,0.47596,88180.0,88162.0,0.01134275]
[1766178001838,0.00576,88183.0,88177.0,8.2e-07]
[1766178002012,0.00576,88182.0,88177.0,8.2e-07]
[1766178002626,0.01134095,88176.0,88150.0,0.0385788]
[1766178002821,0.01134056,88179.0,88155.0,0.01134365]
[1766178002822,0.47596,88175.0,88155.0,0.01134365]
[1766178003047,0.47596,88175.0,88159.0,0.01134314]
[1766178003260,0.59346,88179.0,88168.0,0.00898198]
[1766178003452,1.06942,88179.0,88164.0,0.02723451]
[1766178003624,0.59346,88178.0,88164.0,0.02723451]
[1766178003825,0.59346,88178.0,88162.0,0.01134275]
[1766178004046,0.59346,88178.0,88155.0,0.46082]
[1766178004047,0.63474082,88177.0,88156.0,0.06806075]
[1766178004250,0.6234,88177.0,88159.0,0.01134314]
[1766178004456,0.01134198,88168.0,88145.0,0.47769494]
[1766178004654,0.01134198,88168.0,88110.0,0.00099999]
[1766178004655,0.63474301,88160.0,88146.0,0.01361061]
[1766178004828,0.00576,88159.0,88146.0,0.01361061]
[1766178005233,0.47697,88155.0,88135.0,0.46635]
[1766178005442,0.6234,88154.0,88146.0,0.01361061]
[1766178005648,0.62350811,88154.0,88146.0,6.1e-07]
[1766178006513,0.00010811,88154.0,88140.0,0.01134558]
[1766178006719,0.62350811,88154.0,88145.0,0.01361061]
[1766178007318,0.01134417,88151.0,88135.0,0.03408225]
[1766178007498,1.10037,88147.0,88136.0,0.0113461]
[1766178007741,1.10037,88147.0,88135.0,0.01134623]
[1766178008073,1.10037,88147.0,88133.0,0.01134648]
[1766178008276,1.10037,88147.0,88134.0,0.01134635]
[1766178008675,0.00576,88150.0,88131.0,0.07034371]
[1766178008676,0.63474455,88148.0,88131.0,0.01361061]
[1766178008814,0.00576,88147.0,88131.0,0.01361061]
[1766178009218,0.6234,88148.0,88131.0,0.01361061]
[1766178009438,0.6234,88148.0,88132.0,0.01134661]
[1766178009688,0.47697,88144.0,88127.0,0.01710726]
[1766178009840,0.47697,88144.0,88112.0,0.05674555]
[1766178009841,0.6234,88135.0,88112.0,0.05674555]
[1766178010043,1.10037,88125.0,88116.0,0.03408771]
[1766178010265,0.01134738,88126.0,88080.0,0.13632]
[1766178010266,0.01134893,88114.0,88098.0,0.46635]
[1766178010411,0.6234,88119.0,88102.0,0.01135048]
[1766178010765,0.6234,88119.0,88101.0,0.0113506]
[1766178010766,0.6234,88119.0,88108.0,0.01361061]
[1766178010979,0.00576,88118.0,88108.0,0.01361061]
[1766178011123,0.00576,88118.0,88108.0,0.01397117]
[1766178014084,0.0001028,90557.0,88108.0,0.01397117]
[1766178014085,0.6234,88147.0,88128.0,0.01134713]
[1766178014422,0.00576,88146.0,88133.0,0.01361061]
[1766178014547,0.00576,88145.0,88133.0,0.01361061]
[1766178015786,0.01710494,88145.0,88133.0,0.01361061]
[1766178015967,0.00576,88145.0,88133.0,0.01361061]
[1766178016367,0.01134507,88144.0,88133.0,0.01361061]
[1766178016793,0.01134532,88142.0,88125.0,0.01361061]
[1766178017373,0.01134532,88142.0,88125.0,0.02495812]
[1766178017577,0.0113452,88143.0,88126.0,0.01134738]
[1766178017777,0.01134507,88144.0,88127.0,0.01134726]
[1766178017985,0.0113452,88143.0,88126.0,0.01134738]
[1766178018186,0.01134545,88141.0,88125.0,0.01361061]
[1766178018441,0.01134558,88140.0,88125.0,0.01361061]
[1766178018660,0.01134532,88142.0,88125.0,0.01361061]
[1766178018800,0.01134571,88139.0,88125.0,0.01361061]
[1766178019003,0.00576,88138.0,88125.0,0.01361061]
[1766178019203,0.01134597,88137.0,88125.0,0.01361061]
[1766178019403,0.01134674,88131.0,88114.0,0.46635]
[1766178019605,0.01134674,88131.0,88108.0,0.02532087]
[1766178019606,0.01134726,88127.0,88109.0,0.01134957]
[1766178019835,0.48831713,88128.0,88109.0,0.01134957]
[1766178020042,0.48831713,88128.0,88108.0,0.01973117]
[1766178020240,0.47697,88128.0,88112.0,0.01134919]
[1766178020392,0.48831713,88128.0,88109.0,0.01134957]
[1766178020598,0.01134726,88127.0,88108.0,0.03108087]
[1766178020797,0.48831713,88128.0,88111.0,0.01134932]
[1766178020798,1.11171713,88128.0,88111.0,0.01134932]
[1766178021058,0.01134764,88124.0,88108.0,0.01973117]
[1766178021293,0.01710777,88123.0,88108.0,0.01973117]
[1766178021602,0.00576,88123.0,88108.0,0.03108087]
[1766178021778,0.00576,88123.0,88108.0,0.01973117]
[1766178021934,0.00576,88123.0,88108.0,0.03108087]
[1766178022147,0.00576,88123.0,88108.0,0.01973117]
[1766178022730,0.00576,88123.0,88108.0,0.01397117]
[1766178023979,0.01710777,88123.0,88108.0,0.01397117]
[1766178024187,1.10037,88108.0,88083.0,0.46635]
[1766178024431,0.01135048,88102.0,88083.0,0.46645817]
[1766178024659,1.10037,88104.0,88083.0,0.46645817]
[1766178024845,0.0681021,88103.0,88083.0,0.46645817]
[1766178024986,0.0113506,88101.0,88083.0,0.46645817]
[1766178025187,1.10037,88104.0,88083.0,0.00010817]
[1766178025188,0.01135189,88091.0,88083.0,0.00010817]
[1766178025401,0.01135215,88089.0,88083.0,0.00010817]
[1766178025609,0.01711189,88091.0,88083.0,0.00010817]
[1766178025832,0.0738716,88091.0,88083.0,0.00010817]
[1766178026054,0.01135215,88089.0,88083.0,0.00010817]
[1766178026272,0.01135241,88087.0,88083.0,0.00010817]
[1766178026442,0.01135215,88089.0,88083.0,0.00010817]
[1766178027036,0.01135267,88085.0,88066.0,0.01357397]
[1766178027162,0.58884,88088.0,88069.0,0.01135473]
[1766178027163,0.01135254,88086.0,88069.0,0.01135473]
[1766178027364,0.01135305,88082.0,88068.0,0.45718]
[1766178027748,0.01135292,88083.0,88068.0,0.45718]
[1766178028725,0.01135305,88082.0,88068.0,0.45718]
[1766178029306,0.00576,88083.0,88068.0,0.45718]
[1766178029680,0.01135305,88082.0,88068.0,0.45718]
[1766178030357,0.01711292,88083.0,88068.0,0.45718]
[1766178030785,0.00576,88083.0,88080.0,0.01361061]
[1766178030914,0.00576,88085.0,88080.0,0.01361061]
[1766178031102,0.01135163,88093.0,88080.0,0.01361061]
[1766178031488,0.04055765,88140.0,88089.0,0.01135215]
[1766178031489,0.05674714,88111.0,88089.0,0.01135215]
[1766178031618,1.20893731,88149.0,88105.0,0.01361061]
[1766178031619,0.58884,88120.0,88105.0,0.01361061]
[1766178031824,0.01134854,88117.0,88105.0,0.01361061]
[1766178032048,0.01134893,88114.0,88105.0,0.01361061]
[1766178032261,0.01134893,88114.0,88103.0,0.45718]
[1766178032458,0.01134919,88112.0,88102.0,0.00576]
[1766178032662,0.01135022,88104.0,88097.0,0.00576]
[1766178032870,0.06810153,88104.0,88090.0,0.00576]
[1766178033095,0.01135035,88103.0,88090.0,0.00576]
[1766178033377,0.5946,88105.0,88090.0,0.00576]
[1766178033587,0.01135035,88103.0,88090.0,0.00576]
[1766178033814,0.01135022,88104.0,88090.0,0.00576]
[1766178033986,0.01135035,88103.0,88090.0,0.00576]
[1766178034132,0.01135022,88104.0,88090.0,0.00576]
[1766178034327,0.01135035,88103.0,88090.0,0.00576]
[1766178034530,0.01135022,88104.0,88090.0,0.00576]
[1766178034734,0.60595009,88105.0,88090.0,0.00576]
[1766178034932,0.01135022,88104.0,88090.0,0.00576]
[1766178035340,0.60595009,88105.0,88090.0,0.00576]
[1766178035341,0.01135048,88102.0,88090.0,0.00576]
[1766178035546,0.01135035,88103.0,88090.0,0.00576]
[1766178035749,0.01135048,88102.0,88090.0,0.00576]
[1766178035950,0.01135022,88104.0,88090.0,0.00576]
[1766178036227,0.01135048,88102.0,88085.0,0.45718]
[1766178036424,0.5946,88105.0,88085.0,0.46853267]
[1766178036625,0.5946,88105.0,88088.0,0.01135228]
[1766178036923,0.60595009,88105.0,88088.0,0.01135228]
[1766178037216,0.60595009,88105.0,88087.0,0.48650241]
[1766178037412,0.72141087,88105.0,88087.0,0.48650241]
[1766178037566,0.01711009,88105.0,88087.0,0.48650241]
[1766178037753,0.01135048,88102.0,88089.0,0.47515]
[1766178037987,0.01135035,88103.0,88089.0,0.47515]
[1766178038182,0.01711009,88105.0,88089.0,0.47515]
[1766178038848,0.05675175,88103.0,88089.0,0.47515]
[1766178039350,0.01135048,88102.0,88089.0,0.47515]
[1766178039527,0.01135035,88103.0,88089.0,0.47515]
[1766178039707,0.01135048,88102.0,88089.0,0.47515]
[1766178040075,0.0113506,88101.0,88089.0,0.47515]
[1766178040431,0.01135048,88102.0,88089.0,0.47515]
[1766178040610,0.01135035,88103.0,88089.0,0.47515]
[1766178041331,0.01135048,88102.0,88089.0,0.47515]
[1766178041656,0.01135048,88102.0,88088.0,0.00576]
[1766178041657,1.07306425,88100.0,88088.0,0.00576]
[1766178042077,0.00010811,88112.0,88101.0,0.843]
[1766178042447,0.00586811,88112.0,88101.0,0.843]
[1766178042648,0.0172173,88112.0,88101.0,0.47515]
[1766178043206,0.0172173,88112.0,88101.0,0.47545]
[1766178043349,0.01134932,88111.0,88101.0,0.47545]
[1766178043553,0.61026996,88106.0,88087.0,0.01135241]
[1766178043885,0.59892,88103.0,88086.0,0.01135254]
[1766178044093,0.59892,88102.0,88086.0,0.01135254]
[1766178044292,0.59892,88102.0,88087.0,0.01135241]
[1766178044471,0.61027048,88102.0,88085.0,0.01711267]
[1766178044825,0.61027048,88102.0,88085.0,0.00576]
[1766178044826,0.61027073,88100.0,88085.0,0.00576]
[1766178045033,0.01135112,88097.0,88085.0,0.00576]
[1766178045188,0.01135099,88098.0,88085.0,0.00576]
[1766178045607,0.01135112,88097.0,88085.0,0.00576]
[1766178045808,0.61027189,88091.0,88066.0,0.36785]
[1766178046014,0.47639,88084.0,88067.0,0.49226499]
[1766178046232,0.59892,88083.0,88069.0,0.01135473]
[1766178046434,0.59892,88083.0,88071.0,0.01135447]
[1766178046635,0.59892,88083.0,88069.0,0.01135473]
[1766178046848,0.59892,88083.0,88068.0,0.01135486]
[1766178047054,0.59892,88083.0,88067.0,0.49226499]
[1766178047055,0.59892,88083.0,88067.0,0.48091]
[1766178047256,0.61027292,88083.0,88067.0,0.48091]
[1766178047484,0.61027292,88083.0,88067.0,0.49226499]
[1766178047709,0.59892,88083.0,88067.0,0.49226499]
[1766178048148,0.49350279,88084.0,88069.0,0.01135473]
[1766178048149,0.48215,88084.0,88069.0,0.01135473]
[1766178048349,0.48215,88084.0,88067.0,0.48091]
[1766178048350,0.01135292,88083.0,88067.0,0.48091]